fUSD/lending_fUSD_20260428
["ID","MTS","AMOUNT","RATE_DAILY","PERIOD"]
[421285624,1777336231468,-1029.0,9.999e-05,2]
[421285625,1777336231478,-263.2457146,0.0001,2]
[421285626,1777336231490,-9107.85258034,0.0001,2]
[421285627,1777336231502,-2592.46740506,0.0001,2]
[421285628,1777336231512,-1882.33553275,0.0001026,2]
[421285629,1777336231523,-1763.97926805,0.0001026,2]
[421285630,1777336231534,-544.02,0.0001026,2]
[421285631,1777336231564,-3177.84132518,0.0001026,2]
[421285632,1777336231597,-96.32077402,0.0001026,2]
[421285633,1777336231607,-2500.0,0.00010999,2]
[421285634,1777336231617,-204.37993534,0.00011,2]
[421285635,1777336231628,-468.75595281,0.00011,2]
[421285636,1777336231640,-1826.86411185,0.00011,2]
[421285637,1777336231650,-385.14840384,0.00013698,2]
[421285638,1777336231661,-351.02307539,0.00013698,2]
[421285639,1777336231672,-491.0360497,0.00013698,2]
[421285640,1777336231683,-342.48315084,0.00013698,2]
[421285641,1777336231697,-1259.80932023,0.00013698,2]
[421285642,1777336231707,-150.99,0.00013698,2]
[421285643,1777336231717,-4862.01397418,0.00013698,2]
[421285644,1777336231729,-583.90095707,0.00013698,2]
[421285645,1777336231747,-1232.68337832,0.00013698,2]
[421285649,1777336237684,-3946.76635945,0.00013698,2]
[421285650,1777336237696,-515.9530991,0.00013698,2]
[421285651,1777336237794,-702.0,0.00013698,2]
[421285652,1777336237851,-721.79,0.00013698,2]
[421285692,1777336239881,-885.1413525,0.00013698,2]
[421285693,1777336239892,-571.90539993,0.00013698,2]
[421285694,1777336240366,-18938.59407278,0.00013698,2]
[421285703,1777336242847,-0.85570138,0.00013698,2]
[421285707,1777336245886,-505.0,0.000136,2]
[421285708,1777336245896,-5647.18826788,0.00013698,2]
[421285709,1777336246279,-658.03402278,0.00013698,2]
[421285710,1777336246335,-219.05341463,0.00013698,2]
[421285711,1777336246344,-3499.46,0.00013698,2]
[421285712,1777336246354,-2421.97,0.00013699,2]
[421285713,1777336246364,-464.84,0.00013699,2]
[421285714,1777336246373,-1123.57658537,0.00013699,2]
[421285717,1777336315271,-23323.0,0.0001,2]
[421285728,1777337431679,-256.0,9.998e-05,2]
[421285729,1777337431690,-436.0,9.999e-05,2]
[421285730,1777337431705,-1368.33272966,0.0001006,2]
[421285731,1777337431717,-2928.35270087,0.0001006,2]
[421285732,1777337431727,-1200.0,0.00010099,2]
[421285733,1777337431736,-300.0,0.00010099,2]
[421285734,1777337431746,-146979.3467,0.000101,2]
[421285735,1777337431755,-8922.9083,0.0001016,2]
[421285736,1777337431765,-2500.0,0.0001016,2]
[421285737,1777337431774,-59099.21959931,0.0001026,2]
[421285738,1777337431786,-37827.98563063,0.0001026,2]
[421285739,1777337431798,-92495.19137006,0.0001026,2]
[421285740,1777337431807,-10000.0,0.000103,2]
[421285741,1777337431816,-6691.99858111,0.00010475,2]
[421285742,1777337431828,-1254.41808677,0.00010475,2]
[421285743,1777337431841,-444.0,0.00010475,2]
[421285744,1777337431856,-486.00333212,0.00010475,2]
[421285745,1777337431865,-4523.45,0.00010475,2]
[421285746,1777337431875,-542.95,0.00010475,2]
[421285747,1777337431884,-891.93448111,0.00010475,2]
[421285748,1777337431896,-6296.35551889,0.00010475,2]
[421285749,1777337431905,-20035.22952095,0.00010475,2]
[421285756,1777337437853,-1165.45033526,0.00010475,2]
[421285759,1777337439948,-3799.31014379,0.00010475,2]
[421285760,1777337439960,-299.99,0.00010475,2]
[421285761,1777337439972,-6136.91817499,0.000109,2]
[421285762,1777337439984,-150.99,0.000109,2]
[421285763,1777337439995,-1680.0,0.00011109,2]
[421285764,1777337440005,-474.24789906,0.0001222,2]
[421285765,1777337440020,-713.67957342,0.0001222,2]
[421285766,1777337440034,-1163.07252752,0.0001222,2]
[421285767,1777337440045,-739.35438638,0.00013442,2]
[421285768,1777337440109,-2180.36272786,0.00013442,2]
[421285779,1777337440908,-372.28288576,0.00013442,2]
[421285780,1777337440919,-505.0,0.000136,2]
[421285781,1777337440930,-500.0,0.00013698,2]
[421285782,1777337440941,-500.0,0.00013698,2]
[421285783,1777337440951,-3115.82,0.00013698,2]
[421285784,1777337440960,-500.0,0.00013698,2]
[421285785,1777337440970,-217.0,0.00014543,2]
[421285786,1777337440980,-1035.0,0.00014786,2]
[421285787,1777337440990,-6136.91817495,0.00014854,2]
[421285788,1777337440999,-623.0,0.00015077,2]
[421285789,1777337441009,-1349.0,0.00015077,2]
[421285790,1777337441020,-3525.0,0.00015077,2]
[421285791,1777337441031,-150.0,0.00015077,2]
[421285792,1777337441040,-1266.0,0.00015077,2]
[421285793,1777337441050,-2014.256,0.00015077,2]
[421285794,1777337441060,-6033.0,0.00015077,2]
[421285795,1777337441070,-162.27045424,0.00015722,2]
[421285796,1777337441081,-9999.99,0.00016116,2]
[421285797,1777337441092,-805.33480075,0.00018231,2]
[421285798,1777337441102,-449.87509977,0.00018231,2]
[421285799,1777337441113,-805.33480075,0.00018231,2]
[421285800,1777337441123,-805.33480075,0.00018231,2]
[421285801,1777337441134,-805.33480075,0.00018231,2]
[421285802,1777337441144,-805.33480075,0.00018231,2]
[421285803,1777337441154,-805.33480075,0.00018231,2]
[421285804,1777337441164,-805.33480075,0.00018231,2]
[421285805,1777337441175,-805.33480075,0.00018231,2]
[421285806,1777337441185,-805.33480075,0.00018231,2]
[421285807,1777337441195,-805.33480075,0.00018231,2]
[421285808,1777337441205,-805.33480075,0.00018231,2]
[421285809,1777337441216,-805.33480075,0.00018231,2]
[421285810,1777337441227,-805.33480075,0.00018231,2]
[421285811,1777337441237,-805.33480075,0.00018231,2]
[421285812,1777337441247,-805.33480075,0.00018231,2]
[421285813,1777337441258,-805.33480075,0.00018231,2]
[421285814,1777337441269,-805.33480075,0.00018231,2]
[421285815,1777337441279,-805.33480075,0.00018231,2]
[421285816,1777337441290,-805.33480075,0.00018231,2]
[421285817,1777337441301,-805.33480075,0.00018231,2]
[421285818,1777337441311,-805.33480075,0.00018231,2]
[421285819,1777337441322,-805.33480075,0.00018231,2]
[421285820,1777337441331,-805.33480075,0.00018231,2]
[421285821,1777337441341,-805.33480075,0.00018231,2]
[421285822,1777337441350,-805.33480075,0.00018231,2]
[421285823,1777337441360,-805.33480075,0.00018231,2]
[421285824,1777337441369,-805.33480075,0.00018231,2]
[421285825,1777337441379,-805.33480075,0.00018231,2]
[421285826,1777337441388,-805.33480075,0.00018231,2]
[421285827,1777337441397,-805.33480075,0.00018231,2]
[421285828,1777337441407,-805.33480075,0.00018231,2]
[421285829,1777337441417,-805.33480075,0.00018231,2]
[421285830,1777337441426,-805.33480075,0.00018231,2]
[421285831,1777337441436,-805.33480075,0.00018231,2]
[421285832,1777337441446,-805.33480075,0.00018231,2]
[421285833,1777337441456,-805.33480075,0.00018231,2]
[421285834,1777337441468,-805.33480075,0.00018231,2]
[421285835,1777337441479,-805.33480075,0.00018231,2]
[421285836,1777337441489,-805.33480075,0.00018231,2]
[421285837,1777337441500,-805.33480075,0.00018231,2]
[421285838,1777337441510,-805.33480075,0.00018231,2]
[421285839,1777337441520,-805.33480075,0.00018231,2]
[421285840,1777337441530,-805.33480075,0.00018231,2]
[421285841,1777337441540,-805.33480075,0.00018231,2]
[421285842,1777337441550,-805.33480075,0.00018231,2]
[421285843,1777337441560,-805.33480075,0.00018231,2]
[421285844,1777337441571,-805.33480075,0.00018231,2]
[421285845,1777337441581,-805.33480075,0.00018231,2]
[421285846,1777337441591,-805.33480075,0.00018231,2]
[421285847,1777337441602,-805.33480075,0.00018231,2]
[421285848,1777337441612,-805.33480075,0.00018231,2]
[421285849,1777337441622,-805.33480075,0.00018231,2]
[421285850,1777337441632,-805.33480075,0.00018231,2]
[421285851,1777337441643,-805.33480075,0.00018231,2]
[421285852,1777337441654,-805.33480075,0.00018231,2]
[421285853,1777337441664,-805.33480075,0.00018231,2]
[421285854,1777337441674,-805.33480075,0.00018231,2]
[421285855,1777337441683,-805.33480075,0.00018231,2]
[421285856,1777337441693,-805.33480075,0.00018231,2]
[421285857,1777337441703,-19751.11402811,0.00018232,2]
[421285858,1777337441713,-6136.91817495,0.00019507,2]
[421285859,1777337441723,-1196.0,0.0002,2]
[421285860,1777337441734,-9725.0,0.0002,2]
[421285861,1777337441744,-1196.0,0.00021,2]
[421285862,1777337441754,-1196.0,0.00022,2]
[421285863,1777337441763,-1196.0,0.00023,2]
[421285864,1777337441773,-1196.0,0.00024,2]
[421285865,1777337441783,-6136.91817495,0.00024161,2]
[421285866,1777337441793,-500.0,0.00024245,10]
[421285867,1777337441803,-1814.0,0.00024245,10]
[421285868,1777337441812,-744.0,0.00024245,10]
[421285869,1777337441822,-500.0,0.00024519,10]
[421285870,1777337441832,-616.0,0.00024575,10]
[421285871,1777337441842,-500.0,0.00024793,10]
[421285872,1777337441852,-1207.0,0.00025,2]
[421285873,1777337441862,-2908.34830894,0.00027887,2]
[421285874,1777337441872,-6136.91817495,0.00028815,2]
[421285875,1777337441882,-1196.0,0.00031438,30]
[421285876,1777337441893,-1196.0,0.00032438,30]
[421285877,1777337441903,-271.0,0.00032877,120]
[421285878,1777337441913,-1196.0,0.00033438,30]
[421285879,1777337441922,-6136.91817495,0.00033469,2]
[421285880,1777337441932,-1196.0,0.00034438,30]
[421285881,1777337441942,-328.43019237,0.00034841,120]
[421285882,1777337441952,-500.0,0.00034841,120]
[421285883,1777337441962,-321.53,0.00035146,10]
[421285884,1777337441971,-173.72,0.00035156,41]
[421285885,1777337441983,-1846.785,0.00035156,41]
[421285886,1777337441993,-1196.0,0.00035438,30]
[421285887,1777337442002,-500.0,0.00035526,120]
[421285888,1777337442012,-385.84,0.00036428,10]
[421285889,1777337442022,-500.0,0.0003643,120]
[421285890,1777337442032,-1196.0,0.00036438,30]
[421285891,1777337442042,-306.0,0.00037,120]
[421285892,1777337442053,-177.2276829,0.00037045,120]
[421285893,1777337442063,-1196.0,0.00037438,30]
[421285894,1777337442072,-6136.91817495,0.00038122,2]
[421285895,1777337442082,-150.0,0.00038564,7]
[421285896,1777337442092,-150.0,0.00038564,7]
[421285897,1777337442102,-279.57170796,0.00038564,7]
[421285898,1777337442112,-150.0,0.00038564,7]
[421285899,1777337442121,-1208.977,0.00038585,30]
[421285900,1777337442131,-301.03310582,0.00038642,2]
[421285901,1777337442141,-300.0,0.00038642,2]
[421285902,1777337442151,-300.0,0.00038642,2]
[421285903,1777337442161,-300.0,0.00038642,2]
[421285904,1777337442170,-5800.0,0.0003866,14]
[421285905,1777337442180,-5800.0,0.00038668,14]
[421285906,1777337442190,-5800.0,0.00038677,14]
[421285907,1777337442200,-5800.0,0.00038685,14]
[421285908,1777337442210,-5800.0,0.00038694,14]
[421285909,1777337442220,-5800.0,0.00038702,14]
[421285910,1777337442229,-4945.89389416,0.00038702,14]
[421285911,1777337442239,-2000.0,0.0003889,2]
[421285912,1777337442249,-5000.0,0.000389,2]
[421285913,1777337442259,-463.0,0.00038975,10]
[421285914,1777337442269,-228.34,0.00038989,30]
[421285915,1777337442279,-500.0,0.00038989,30]
[421285916,1777337442288,-500.0,0.00038989,30]
[421285917,1777337442298,-3115.82,0.00038989,30]
[421285918,1777337442308,-500.0,0.00038999,15]
[421285919,1777337442318,-500.0,0.00038999,15]
[421285920,1777337442328,-500.0,0.00038999,15]
[421285921,1777337442338,-170.52661188,0.00038999,15]
[421285922,1777337442347,-529.94569034,0.00038999,15]
[421285923,1777337442357,-500.0,0.00038999,30]
[421285924,1777337442367,-500.0,0.00038999,30]
[421285925,1777337442377,-500.0,0.00038999,30]
[421285926,1777337442387,-500.0,0.00038999,30]
[421285927,1777337442397,-3115.82,0.00038999,30]
[421285928,1777337442407,-3115.82,0.00038999,30]
[421285929,1777337442417,-180.66698753,0.00038999,15]
[421285930,1777337442426,-289.32540034,0.00038999,2]
[421285931,1777337442436,-1275.0,0.00039,5]
[421285932,1777337442446,-1322.0,0.00039,5]
[421285933,1777337442456,-659671.85987826,0.00039,2]
[421285934,1777337442466,-797.46298758,0.00039112,14]
[421285935,1777337442476,-152.0,0.00039212,3]
[421285936,1777337442487,-228.34,0.00039263,30]
[421285938,1777337442496,-180.74307454,0.00039312,2]
[421285939,1777337442506,-895.0,0.00039519,2]
[421285940,1777337442516,-179.0,0.00039519,2]
[421285941,1777337442526,-228.34,0.00039537,30]
[421285942,1777337442536,-159.0,0.0004,120]
[421285943,1777337442546,-797.46298758,0.00040028,15]
[421285944,1777337442556,-300.217815,0.00040131,21]
[421285945,1777337442566,-222.20021945,0.00040154,120]
[421285946,1777337442576,-150.0,0.00040707,7]
[421285947,1777337442587,-1869.1056,0.00040746,2]
[421285948,1777337442597,-10000.0,0.00040746,4]
[421285949,1777337442608,-797.46298758,0.00040944,16]
[421285950,1777337442619,-191232.0,0.0004095,60]
[421285951,1777337442629,-180.74307454,0.00041044,2]
[421285952,1777337442639,-500.0,0.00041094,30]
[421285953,1777337442650,-500.0,0.00041094,30]
[421285954,1777337442661,-3115.82,0.00041094,30]
[421285955,1777337442672,-500.25,0.00041095,30]
[421285956,1777337442683,-500.25,0.00041095,30]
[421285957,1777337442693,-500.0,0.00041095,30]
[421285959,1777337442704,-500.0,0.00041095,30]
[421285960,1777337442715,-500.0,0.00041095,120]
[421285961,1777337442725,-500.0,0.00041247,120]
[421285962,1777337442736,-500.0,0.00041247,120]
[421285963,1777337442747,-300.217815,0.00041454,21]
[421285964,1777337442757,-167.2,0.00041569,120]
[421285965,1777337442767,-243.13487102,0.00041604,2]
[421285966,1777337442778,-1139.1,0.00041847,120]
[421285967,1777337442788,-159.0,0.00042,120]
[421285968,1777337442798,-295.09611386,0.00042,120]
[421285969,1777337442808,-181.6,0.0004211,120]
[421285970,1777337442818,-191232.0,0.000423,60]
[421285971,1777337442828,-1000.0,0.000423,120]
[421285972,1777337442839,-500.0,0.00042343,120]
[421285973,1777337442849,-1000.0,0.000424,120]
[421285974,1777337442859,-1000.0,0.000425,120]
[421285975,1777337442869,-5381.21881674,0.000425,120]
[421285976,1777337442879,-986.24,0.00042514,2]
[421285977,1777337442889,-1000.0,0.000426,120]
[421285978,1777337442899,-200.0,0.0004262,120]
[421285979,1777337442909,-161.0,0.0004269,120]
[421285980,1777337442919,-1000.0,0.000427,120]
[421285981,1777337442928,-151.0,0.00042715,10]
[421285982,1777337442938,-151.0,0.00042715,10]
[421285983,1777337442948,-151.0,0.00042715,10]
[421285984,1777337442958,-151.0,0.00042715,10]
[421285985,1777337442967,-151.0,0.00042715,10]
[421285986,1777337442978,-151.0,0.00042715,10]
[421285987,1777337442987,-151.0,0.00042715,10]
[421285988,1777337442998,-151.0,0.00042715,10]
[421285989,1777337443008,-151.0,0.00042715,10]
[421285990,1777337443018,-151.0,0.00042715,10]
[421285991,1777337443028,-212.02,0.0004275,120]
[421285992,1777337443038,-180.74307454,0.00042776,9]
[421285993,1777337443048,-158.67151286,0.00042776,2]
[421285994,1777337443058,-187.5,0.00042776,2]
[421285995,1777337443068,-187.5,0.00042776,2]
[421285996,1777337443078,-1000.0,0.000428,120]
[421285997,1777337443088,-53409.9465662,0.00042846,2]
[421285998,1777337443097,-151.0,0.00042848,120]
[421285999,1777337443108,-151.0,0.00042848,120]
[421286000,1777337443117,-151.0,0.00042848,120]
[421286001,1777337443127,-500.0,0.00042848,120]
[421286002,1777337443137,-151.0,0.00042849,120]
[421286003,1777337443147,-151.0,0.00042849,120]
[421286004,1777337443157,-151.0,0.00042849,120]
[421286005,1777337443167,-162.9453328,0.00042849,120]
[421286006,1777337443177,-150.0,0.00042849,30]
[421286007,1777337443187,-151.0,0.0004285,120]
[421286008,1777337443197,-151.0,0.0004285,120]
[421286009,1777337443207,-151.0,0.0004285,120]
[421286010,1777337443216,-151.0,0.0004285,120]
[421286011,1777337443226,-151.0,0.0004285,120]
[421286012,1777337443236,-151.0,0.0004285,120]
[421286014,1777337443247,-500.25,0.00042871,30]
[421286016,1777337443256,-500.25,0.00042871,30]
[421286019,1777337443266,-500.25,0.00042871,30]
[421286020,1777337443276,-500.25,0.00042871,30]
[421286022,1777337443286,-500.25,0.00042871,30]
[421286025,1777337443296,-500.25,0.00042871,30]
[421286027,1777337443306,-500.25,0.00042871,30]
[421286029,1777337443317,-500.25,0.00042871,30]
[421286031,1777337443326,-500.25,0.00042871,30]
[421286033,1777337443336,-500.25,0.00042871,30]
[421286035,1777337443346,-500.25,0.00042871,30]
[421286037,1777337443355,-500.25,0.00042871,30]
[421286039,1777337443365,-500.25,0.00042871,30]
[421286041,1777337443375,-500.25,0.00042871,30]
[421286043,1777337443385,-500.25,0.00042871,30]
[421286045,1777337443395,-500.25,0.00042871,30]
[421286047,1777337443404,-500.25,0.00042871,30]
[421286049,1777337443414,-500.25,0.00042871,30]
[421286051,1777337443424,-500.25,0.00042871,30]
[421286053,1777337443434,-500.25,0.00042871,30]
[421286055,1777337443444,-500.25,0.00042871,30]
[421286057,1777337443454,-500.25,0.00042871,30]
[421286059,1777337443464,-3115.82,0.00042871,30]
[421286060,1777337443473,-3115.82,0.00042871,30]
[421286061,1777337443484,-3115.82,0.00042871,30]
[421286063,1777337443493,-3115.82,0.00042871,30]
[421286065,1777337443504,-3115.82,0.00042871,30]
[421286067,1777337443514,-3115.82,0.00042871,30]
[421286069,1777337443524,-3115.82,0.00042871,30]
[421286071,1777337443534,-3115.82,0.00042871,30]
[421286072,1777337443544,-3115.82,0.00042871,30]
[421286073,1777337443553,-3115.82,0.00042871,30]
[421286074,1777337443563,-3115.82,0.00042871,30]
[421286075,1777337443573,-3115.82,0.00042871,30]
[421286076,1777337443584,-3115.82,0.00042871,30]
[421286077,1777337443594,-3115.82,0.00042871,30]
[421286078,1777337443604,-3115.82,0.00042871,30]
[421286079,1777337443614,-3115.82,0.00042871,30]
[421286080,1777337443624,-3115.82,0.00042871,30]
[421286081,1777337443634,-3115.82,0.00042871,30]
[421286082,1777337443644,-3116.05850641,0.00042871,30]
[421286083,1777337443654,-2135.0,0.00042872,7]
[421286084,1777337443664,-39683.32244815,0.00042872,30]
[421286085,1777337443674,-153.0,0.00042873,120]
[421286086,1777337443686,-162.0,0.00042873,120]
[421286087,1777337443696,-151.0,0.00042873,120]
[421286088,1777337443706,-152.0,0.00042873,120]
[421286089,1777337443716,-157.0,0.00042873,120]
[421286090,1777337443727,-154.0,0.00042873,120]
[421286091,1777337443736,-169.0,0.00042873,120]
[421286092,1777337443746,-2949.4,0.00042876,120]
[421286093,1777337443756,-2949.4,0.00042876,120]
[421286094,1777337443769,-2949.4,0.00042876,120]
[421286095,1777337443780,-2949.4,0.00042876,120]
[421286096,1777337444280,-2949.4,0.00042876,120]
[421286097,1777337444291,-2949.4,0.00042876,120]
[421286098,1777337444302,-2949.4,0.00042876,120]
[421286099,1777337444312,-2949.4,0.00042876,120]
[421286100,1777337444321,-2949.4,0.00042876,120]
[421286101,1777337444331,-2949.4,0.00042876,120]
[421286102,1777337444341,-2949.4,0.00042876,120]
[421286103,1777337444351,-2949.4,0.00042876,120]
[421286104,1777337444361,-1875930.90410487,0.00042876,30]
[421286105,1777337444377,-3131.23509527,0.00042876,30]
[421286106,1777337444392,-479.436717,0.00042776,28]
[421286107,1777337444404,-1530.77808329,0.00042776,28]
[421286108,1777337444415,-946.07996809,0.00042776,28]
[421286109,1777337444426,-526.29581916,0.00042776,28]
[421286110,1777337444455,-53888.85835743,0.0001016,2]
[421286111,1777337444466,-1838.8604776,0.0001016,2]
[421286112,1777337444478,-2916.24523741,0.0001016,2]
[421286113,1777337444491,-7397.37146395,0.0001016,2]
[421286114,1777337444510,-2671.09915549,0.0001016,2]
[421286115,1777337444521,-12557.21830247,0.0001016,2]
[421286116,1777337444533,-853.9665,0.0001016,2]
[421286122,1777337445979,-939.34797664,0.0001016,2]
[421286123,1777337446456,-298.87288144,0.0001016,2]
[421286124,1777337446511,-874.04884267,0.0001016,2]
[421286125,1777337446565,-657.92929977,0.0001016,2]
[421286126,1777337446577,-9327.15212781,0.0001016,2]
[421286175,1777337467190,200.0,9.9e-05,3]
[421286176,1777337469275,500.0,0.0001,3]
[421286177,1777337641343,10000.0,8.1e-05,2]
[421286178,1777338425281,200.0,9.7e-05,3]
[421286179,1777338427193,400.0,9.8e-05,3]
[421286180,1777338429287,600.0,9.9e-05,3]
[421286181,1777338431375,900.0,0.0001,3]
[421286190,1777338631885,-309.35979326,9.16e-05,2]
[421286191,1777338631895,-250.0,9.285e-05,2]
[421286192,1777338631905,-36.16872635,9.411e-05,2]
[421286193,1777338631946,-263.83127365,9.411e-05,2]
[421286194,1777338631956,-192.80987891,9.516e-05,2]
[421286195,1777338631970,-263.58490653,9.588e-05,2]
[421286196,1777338632009,-23.41509347,9.588e-05,2]
[421286197,1777338632019,-333.03440959,9.588e-05,2]
[421286198,1777338632076,-866.96559041,9.588e-05,2]
[421286199,1777338632085,-300.0,9.638e-05,2]
[421286200,1777338632095,-500.0,9.898e-05,2]
[421286201,1777338632105,-300.0,9.999e-05,2]
[421286202,1777338632114,-588.24399512,0.0001,2]
[421286203,1777338632123,-166.72168375,0.0001,2]
[421286204,1777338632133,-1010.2635,0.0001,2]
[421286205,1777338632142,-2500.0,0.0001,2]
[421286206,1777338632152,-37086.22880338,0.0001,2]
[421286207,1777338632164,-209261.36663274,0.0001,2]
[421286208,1777338632175,-188982.95553212,0.0001,2]
[421286209,1777338632187,-643.82857995,0.0001,2]
[421286210,1777338632198,-436.89396713,0.0001,2]
[421286211,1777338632209,-693.6130166,0.0001,2]
[421286212,1777338632220,-7494.78054138,0.0001,2]
[421286226,1777338638055,-736.12857669,0.0001,2]
[421286232,1777338638114,-1906.31029911,0.0001,2]
[421286233,1777338638126,-1980.58075856,0.0001,2]
[421286234,1777338638234,-297.28257251,0.0001,2]
[421286235,1777338638246,-592.35677354,0.0001,2]
[421286236,1777338638257,-559.53366536,0.0001,2]
[421286237,1777338638296,-800.71742749,0.0001,2]
[421286238,1777338638360,-1058.9566945,0.0001,2]
[421286239,1777338638372,-6657.42045116,0.0001,2]
[421286240,1777338638424,-39117.2000674,0.0001,2]
[421286243,1777338638436,-9399.4086997,0.0001,2]
[421286259,1777338640420,-2828.28702951,0.0001,2]
[421286260,1777338640432,-11254.23974103,0.0001,2]
[421286261,1777338640444,-1109.5857,0.0001,2]
[421286262,1777338640483,-2414.10485394,0.0001,2]
[421286275,1777338643075,-470.0,9.95e-05,2]
[421286278,1777338643136,-717.72,9.95e-05,2]
[421286279,1777338643148,-1751.70942853,9.95e-05,2]
[421286280,1777338646148,-997.9782481,9.95e-05,2]
[421286281,1777338646159,-267.81012156,9.95e-05,2]
[421286282,1777338646171,-649.6768,9.95e-05,2]
[421286283,1777338646207,-459.58986104,9.95e-05,2]
[421286284,1777338646268,-1721.26992909,9.95e-05,2]
[421286285,1777338646609,-442.42637141,9.95e-05,2]
[421286286,1777338646620,-515.32199994,9.95e-05,2]
[421286287,1777338646631,-469.78000001,9.95e-05,2]
[421286288,1777338646725,-2021.19176632,9.95e-05,2]
[421286289,1777338646734,-147543.1370102,0.0001,2]
[421286290,1777338646746,-2293.72232384,0.0001,2]
[421286293,1777338799389,3323.04,0.000166,120]
[421286298,1777339832191,-265.0,8.901e-05,2]
[421286299,1777339832201,-150.0,8.901e-05,2]
[421286300,1777339832211,-150.0,8.901e-05,2]
[421286302,1777339832221,-150.0,8.901e-05,2]
[421286304,1777339832231,-150.0,9.043e-05,2]
[421286307,1777339832243,-150.0,9.184e-05,2]
[421286309,1777339832253,-150.0,9.325e-05,2]
[421286311,1777339832263,-1000.661726,9.419e-05,2]
[421286313,1777339832272,-150.0,9.467e-05,2]
[421286315,1777339832282,-803.38770582,9.467e-05,2]
[421286317,1777339832292,-150.0,9.608e-05,2]
[421286318,1777339832302,-803.3877058,9.634e-05,2]
[421286319,1777339832312,-300.0,9.7e-05,2]
[421286320,1777339832321,-300.0,9.7e-05,2]
[421286321,1777339832331,-1200.0,9.7e-05,2]
[421286322,1777339832341,-300.0,9.7e-05,2]
[421286323,1777339832351,-267.43319798,9.701e-05,2]
[421286324,1777339832360,-250.0,9.701e-05,2]
[421286325,1777339832370,-1829.307,9.702e-05,2]
[421286326,1777339832379,-179.154,9.702e-05,2]
[421286327,1777339832388,-150.0,9.749e-05,2]
[421286328,1777339832398,-405.63,9.751e-05,2]
[421286329,1777339832408,-300.0,9.791e-05,2]
[421286330,1777339832418,-300.0,9.791e-05,2]
[421286331,1777339832428,-150.0,9.799e-05,2]
[421286332,1777339832439,-1157398.47481817,9.8e-05,2]
[421286333,1777339832451,-931.70372915,9.8e-05,2]
[421286334,1777339832470,-3701.3,9.8e-05,2]
[421286335,1777339832481,-584.17681394,9.8e-05,2]
[421286336,1777339832603,-10534.31893508,9.8e-05,2]
[421286337,1777339832615,-5211.49292933,9.8e-05,2]
[421286346,1777339838716,-500.0,9.799e-05,2]
[421286347,1777339838727,-339.53397512,9.799e-05,2]
[421286348,1777339838736,-500.0,9.799e-05,2]
[421286349,1777339838746,-171.87824419,9.799e-05,2]
[421286350,1777339838756,-500.0,9.799e-05,2]
[421286351,1777339838765,-116166.98441675,9.8e-05,2]
[421286399,1777339840754,-111250.57775758,9.8e-05,2]
[421286400,1777339840764,-803.3877058,9.8e-05,2]
[421286401,1777339840773,-2500.0,9.8e-05,2]
[421286402,1777339840985,-3290.84876593,9.8e-05,2]
[421286403,1777339841049,-150.0,9.89e-05,2]
[421286404,1777339841059,-150.0,9.89e-05,2]
[421286405,1777339841068,-1200.0,0.0001067,2]
[421286406,1777339841077,-500.0,0.00010671,2]
[421286407,1777339841087,-250.0,0.00010671,2]
[421286408,1777339841096,-120499.87620488,0.00010682,2]
[421286409,1777339841106,-331.79094842,0.000109,2]
[421286410,1777339841115,-331.79094842,0.000109,2]
[421286411,1777339841124,-331.79094842,0.00010957,2]
[421286412,1777339841133,-274.67601948,0.00011213,2]
[421286413,1777339841143,-331.79094842,0.00011271,2]
[421286414,1777339841153,-331.79094842,0.00011586,2]
[421286415,1777339841162,-331.79094842,0.000119,2]
[421286416,1777339841172,-443.2865872,0.000119,2]
[421286417,1777339841182,-2650499.16990031,0.00012,2]